fUST/lending_fUST_20240530
["ID","MTS","AMOUNT","RATE_DAILY","PERIOD"]
[328231625,1717079450715,-500.0,0.00032876,4]
[328231627,1717079450724,-1014.89,0.00032876,4]
[328231629,1717079450734,-1286.1,0.00032876,4]
[328231631,1717079450743,-690.89,0.00032876,4]
[328231633,1717079450752,-2164.75,0.00032876,4]
[328231635,1717079450761,-500.0,0.00032876,4]
[328231637,1717079450771,-25843.4905275,0.00032877,2]
[328231639,1717079450781,-151.0,0.00032877,2]
[328231641,1717079450790,-151.0,0.00032877,2]
[328231643,1717079450800,-151.0,0.00032877,2]
[328231645,1717079450809,-151.0,0.00032877,2]
[328231647,1717079450819,-151.0,0.00032877,2]
[328231649,1717079450828,-151.0,0.00032877,2]
[328231651,1717079450837,-151.0,0.00032877,2]
[328231653,1717079450847,-151.0,0.00032877,2]
[328231655,1717079450860,-275.920732,0.00032877,2]
[328231657,1717079450870,-5000.0,0.000329,10]
[328231659,1717079450879,-161.32159789,0.000329,7]
[328231661,1717079450889,-167.74758701,0.00032902,7]
[328231663,1717079450898,-300.0,0.00033,7]
[328231665,1717079450910,-1938.67000499,0.00033,2]
[328231667,1717079450919,-600.0,0.00033,10]
[328231669,1717079450928,-600.0,0.00033,10]
[328231671,1717079450938,-600.0,0.00033,10]
[328231673,1717079450947,-600.0,0.00033,10]
[328231675,1717079450957,-600.0,0.00033,10]
[328231677,1717079450966,-600.0,0.00033,10]
[328231679,1717079450975,-600.0,0.00033,10]
[328231681,1717079450984,-600.0,0.00033,10]
[328231683,1717079450993,-600.0,0.00033,10]
[328231685,1717079451003,-614.0,0.00033,10]
[328231687,1717079451011,-2500.0,0.00033,4]
[328231689,1717079451021,-282.0,0.00033,6]
[328231691,1717079451030,-151.0,0.00033,2]
[328231693,1717079451040,-151.0,0.00033,2]
[328231695,1717079451049,-161.32159789,0.00033019,7]
[328231697,1717079451059,-167.74758701,0.0003305,7]
[328231699,1717079451068,-477.20950868,0.00033062,7]
[328231701,1717079451077,-1525.37,0.00033149,2]
[328231703,1717079451086,-500.0,0.0003315,2]
[328231705,1717079451095,-500.0,0.0003315,4]
[328231707,1717079451105,-500.0,0.0003315,4]
[328231709,1717079451114,-1014.89,0.0003315,4]
[328231711,1717079451124,-1286.1,0.0003315,4]
[328231713,1717079451134,-690.89,0.0003315,4]
[328231715,1717079451142,-2164.75,0.0003315,4]
[328231717,1717079451151,-500.0,0.0003315,4]
[328231719,1717079451161,-1376.05,0.00033183,2]
[328231721,1717079451171,-161.32159789,0.00033197,7]
[328231723,1717079451180,-477.20950868,0.00033199,7]
[328231725,1717079451190,-1694.85,0.00033201,2]
[328231727,1717079451199,-1114.6,0.00033218,2]
[328231729,1717079451208,-364.52992769,0.00033221,4]
[328231731,1717079451217,-154.87609912,0.00033221,7]
[328231733,1717079451226,-160.80712366,0.00033221,20]
[328231735,1717079451235,-1883.17,0.00033222,2]
[328231737,1717079451244,-990.76,0.00033222,2]
[328231739,1717079451253,-880.68,0.00033222,2]
[328231741,1717079451262,-162.39393311,0.00033225,10]
[328231743,1717079451273,-151.0,0.00033227,2]
[328231745,1717079451282,-151.0,0.00033227,2]
[328231747,1717079451291,-151.0,0.00033227,2]
[328231749,1717079451300,-151.0,0.00033227,2]
[328231751,1717079451309,-1238.45,0.00033231,2]
[328231753,1717079451318,-1114.6,0.00033233,2]
[328231755,1717079451327,-782.82,0.00033234,2]
[328231757,1717079451336,-695.84,0.00033235,2]
[328231759,1717079451346,-695.84,0.00033235,2]
[328231761,1717079451355,-695.84,0.00033235,2]
[328231763,1717079451364,-695.84,0.00033235,2]
[328231765,1717079451373,-695.84,0.00033235,2]
[328231767,1717079451382,-695.84,0.00033235,2]
[328231768,1717079451391,-695.84,0.00033235,2]
[328231771,1717079451401,-695.84,0.00033235,2]
[328231772,1717079451411,-695.84,0.00033235,2]
[328231775,1717079451420,-47517.15301665,0.00033236,7]
[328231776,1717079451429,-25000.0,0.00033236,2]
[328231778,1717079451439,-220.74062431,0.00033236,120]
[328231780,1717079451448,-3368.91428953,0.00033236,120]
[328231782,1717079451458,-5278.00059313,0.00033236,60]
[328231784,1717079451467,-833.97999019,0.00033236,30]
[328231786,1717079451476,-2357.00845934,0.00033236,30]
[328231788,1717079451485,-38472.65230303,0.00033236,30]
[328231790,1717079451494,-6010.15547527,0.00033236,30]
[328231792,1717079451503,-521.67715103,0.00033236,2]
[328231794,1717079451512,-550.0,0.00033236,30]
[328231796,1717079451522,-454.10111918,0.00033236,30]
[328231798,1717079451531,-5173.0,0.00033236,30]
[328231800,1717079451541,-309636.03554182,0.00033236,30]
[328231802,1717079451550,-3189.16,0.00033239,2]
[328231804,1717079451560,-477.20950868,0.0003325,7]
[328231806,1717079451569,-339.52509657,0.000333,120]
[328231808,1717079451578,-500.0,0.00033424,2]
[328231810,1717079451588,-500.0,0.00033424,4]
[328231812,1717079451599,-500.0,0.00033424,4]
[328231814,1717079451608,-1014.89,0.00033424,4]
[328231816,1717079451617,-1286.1,0.00033424,4]
[328231818,1717079451627,-690.89,0.00033424,4]
[328231820,1717079451637,-2164.75,0.00033424,4]
[328231822,1717079451646,-500.0,0.00033424,4]
[328231824,1717079451656,-203.64929393,0.00033448,7]
[328231826,1717079451665,-477.20950868,0.00033584,7]
[328231829,1717079451675,-167.74758701,0.00033587,7]
[328231831,1717079451686,-167.74758701,0.00033597,7]
[328231833,1717079451695,-161.32159789,0.00033628,7]
[328231834,1717079451705,-167.74758701,0.00033642,7]
[328231836,1717079451714,-167.74758701,0.0003368,7]
[328231839,1717079451723,-167.74758701,0.00033682,7]
[328231841,1717079451733,-500.0,0.00033698,2]
[328231842,1717079451742,-500.0,0.00033698,4]
[328231844,1717079451752,-500.0,0.00033698,4]
[328231847,1717079451762,-1014.89,0.00033698,4]
[328231849,1717079451772,-1286.1,0.00033698,4]
[328231850,1717079451781,-690.89,0.00033698,4]
[328231852,1717079451790,-2164.75,0.00033698,4]
[328231855,1717079451800,-500.0,0.00033698,4]
[328231857,1717079451809,-167.74758701,0.00033718,7]
[328231858,1717079451817,-161.32159789,0.00033737,7]
[328231860,1717079451826,-342.6372315,0.00033753,2]
[328231862,1717079451835,-161.32159789,0.00033758,7]
[328231864,1717079451844,-167.74758701,0.00033759,7]
[328231866,1717079451859,-583.7540008,0.00033836,2]
[328231868,1717079451867,-477.20950868,0.00033865,7]
[328231870,1717079451877,-500.0,0.00033972,2]
[328231872,1717079451886,-500.0,0.00033972,4]
[328231875,1717079451896,-500.0,0.00033972,4]
[328231877,1717079451905,-1014.89,0.00033972,4]
[328231878,1717079451914,-1286.1,0.00033972,4]
[328231880,1717079451923,-690.89,0.00033972,4]
[328231882,1717079451935,-2164.75,0.00033972,4]
[328231884,1717079451945,-500.0,0.00033972,4]
[328231886,1717079451955,-153.20212568,0.00033994,7]
[328231888,1717079451963,-2092.41,0.00033999,2]
[328231890,1717079451972,-300.0,0.00034,9]
[328231892,1717079451981,-156.40541531,0.00034,2]
[328231894,1717079451990,-1000.0,0.00034,120]
[328231896,1717079451999,-1000.0,0.00034,34]
[328231898,1717079452008,-500.3035573,0.00034,7]
[328231900,1717079452017,-10000.0,0.00034,7]
[328231902,1717079452031,-10000.0,0.00034,7]
[328231905,1717079452041,-10000.0,0.00034,7]
[328231906,1717079452050,-10000.0,0.00034,7]
[328231909,1717079452059,-12670.35868852,0.00034,7]
[328231911,1717079452069,-200.0,0.00034073,120]
[328231913,1717079452077,-477.20950868,0.0003408,7]
[328231915,1717079452086,-153.0,0.0003411,2]
[328231916,1717079452095,-153.0,0.0003411,2]
[328231918,1717079452105,-153.0,0.0003411,2]
[328231920,1717079452114,-477.20950868,0.00034112,7]
[328231922,1717079452124,-477.20950868,0.00034158,7]
[328231924,1717079452133,-161.32159789,0.00034188,7]
[328231926,1717079452142,-477.20950868,0.0003419,7]
[328231928,1717079452151,-500.0,0.00034246,2]
[328231930,1717079452161,-500.0,0.00034246,4]
[328231932,1717079452171,-500.0,0.00034246,4]
[328231935,1717079452182,-1014.89,0.00034246,4]
[328231936,1717079452191,-1286.1,0.00034246,4]
[328231938,1717079452200,-690.89,0.00034246,4]
[328231940,1717079452210,-2164.75,0.00034246,4]
[328231942,1717079452219,-500.0,0.00034246,4]
[328231945,1717079452229,-9999.99999902,0.0003428,2]
[328231947,1717079452237,-161.32159789,0.00034401,7]
[328231948,1717079452247,-161.32159789,0.00034496,7]
[328231950,1717079452257,-1000.0,0.000345,2]
[328231952,1717079452266,-158221.21178363,0.000345,2]
[328231954,1717079452279,-500.0,0.0003452,2]
[328231956,1717079452288,-500.0,0.0003452,4]
[328231958,1717079452298,-500.0,0.0003452,4]
[328231960,1717079452307,-1014.89,0.0003452,4]
[328231962,1717079452316,-1286.1,0.0003452,4]
[328231964,1717079452325,-690.89,0.0003452,4]
[328231966,1717079452334,-2164.75,0.0003452,4]
[328231968,1717079452343,-191.09735532,0.0003452,4]
[328231970,1717079452353,-161.32159789,0.00034549,7]
[328231972,1717079452363,-477.20950868,0.00034587,7]
[328231974,1717079452372,-161.32159789,0.00034602,7]
[328231976,1717079452382,-161.32159789,0.00034639,7]
[328231978,1717079452391,-161.32159789,0.00034681,7]
[328231981,1717079452400,-477.20950868,0.00034688,7]
[328231983,1717079452410,-1276.54382956,0.00034728,12]
[328231984,1717079452419,-2324.9,0.00034792,2]
[328231986,1717079452429,-500.0,0.00034794,2]
[328231989,1717079452438,-500.0,0.00034794,4]
[328231991,1717079452448,-500.0,0.00034794,4]
[328231993,1717079452458,-1014.89,0.00034794,4]
[328231995,1717079452468,-1286.1,0.00034794,4]
[328231997,1717079452477,-690.89,0.00034794,4]
[328231999,1717079452486,-2164.75,0.00034794,4]
[328232001,1717079452495,-2870.24,0.00034798,2]
[328232003,1717079452504,-10749.27328293,0.000348,4]
[328232005,1717079452513,-160.48,0.000348,4]
[328232006,1717079452526,-160.48,0.000348,4]
[328232007,1717079452535,-161.32159795,0.00034855,7]
[328232008,1717079452544,-291.9275846,0.00034932,2]
[328232009,1717079452553,-291.9275846,0.00034932,2]
[328232010,1717079452561,-291.9275846,0.00034932,2]
[328232011,1717079452571,-291.9275846,0.00034932,2]
[328232012,1717079452580,-291.9275846,0.00034932,2]
[328232013,1717079452588,-3937.24,0.00034998,2]
[328232014,1717079452598,-2583.22,0.00034998,2]
[328232015,1717079452607,-3543.51,0.00034999,2]
[328232017,1717079452616,-388.4841843,0.00035,4]
[328232018,1717079452625,-10457.25299652,0.00035,4]
[328232020,1717079452634,-154.87609912,0.00035,4]
[328232021,1717079452643,-4704.32401348,0.00035,4]
[328232023,1717079452652,-300.0,0.00035,10]
[328232025,1717079452661,-211.19718382,0.00035,2]
[328232026,1717079452671,-604701.1786628,0.00035,30]
[328232028,1717079452680,-15356.0,0.00035,30]
[328232030,1717079452689,-59879.58990909,0.00035,2]
[328232032,1717079452698,-10331.76709931,0.00035,2]
[328232034,1717079452707,-725.91237118,0.00035,2]
[328232036,1717079452717,-33320.84641695,0.00035,7]
[328232038,1717079452726,-846.58,0.00035,120]
[328232040,1717079452735,-3916.62,0.00035,120]
[328232042,1717079452745,-283.91447984,0.00035,5]
[328232043,1717079452754,-6024.45021672,0.00035,10]
[328232045,1717079452763,-500.0,0.00035,7]
[328232047,1717079452774,-397.31065805,0.00035,2]
[328232049,1717079452783,-700.0,0.00035,30]
[328232051,1717079452792,-437.10435,0.00035068,2]
[328232052,1717079452801,-500.0,0.00035068,4]
[328232054,1717079452811,-500.0,0.00035068,4]
[328232056,1717079452821,-1014.89,0.00035068,4]
[328232057,1717079452830,-1286.1,0.00035068,4]
[328232058,1717079452839,-690.89,0.00035068,4]
[328232060,1717079452848,-2164.75,0.00035068,4]
[328232061,1717079452860,-154.3,0.0003507,35]
[328232062,1717079452869,-150.5,0.0003508,35]
[328232063,1717079452879,-150.5,0.0003509,35]
[328232064,1717079452888,-180.82995311,0.000351,4]
[328232065,1717079452898,-500.0,0.00035342,4]
[328232066,1717079452908,-500.0,0.00035342,4]
[328232067,1717079452917,-1014.89,0.00035342,4]
[328232068,1717079452927,-1286.1,0.00035342,4]
[328232069,1717079452938,-690.89,0.00035342,4]
[328232070,1717079452947,-2164.75,0.00035342,4]
[328232071,1717079452956,-5082.22374195,0.00035455,14]
[328232072,1717079452965,-416.3442329,0.00035479,2]
[328232073,1717079452974,-549.84408164,0.00035616,15]
[328232074,1717079453074,-500.0,0.00035616,7]
[328232075,1717079453084,-500.0,0.00035616,7]
[328232076,1717079453093,-500.0,0.00035616,7]
[328232078,1717079453105,-500.0,0.00035616,7]
[328232079,1717079453114,-500.0,0.00035616,7]
[328232080,1717079453123,-500.0,0.00035616,7]
[328232082,1717079453132,-500.0,0.00035616,7]
[328232084,1717079453142,-555.75409098,0.00035616,7]
[328232086,1717079453150,-500.0,0.00035616,7]
[328232087,1717079453160,-500.0,0.00035616,7]
[328232089,1717079453169,-500.0,0.00035616,7]
[328232091,1717079453178,-500.0,0.00035616,7]
[328232093,1717079453187,-500.0,0.00035616,7]
[328232095,1717079453197,-500.0,0.00035616,7]
[328232097,1717079453206,-500.0,0.00035616,7]
[328232099,1717079453216,-500.0,0.00035616,7]
[328232101,1717079453225,-500.0,0.00035616,7]
[328232103,1717079453235,-500.0,0.00035616,7]
[328232105,1717079453244,-500.0,0.00035616,7]
[328232107,1717079453255,-500.0,0.00035616,7]
[328232109,1717079453265,-500.0,0.00035616,7]
[328232111,1717079453276,-538.10747434,0.00035616,30]
[328232113,1717079453286,-500.0,0.00035616,4]
[328232115,1717079453295,-500.0,0.00035616,4]
[328232117,1717079453305,-1014.89,0.00035616,4]
[328232119,1717079453314,-1286.1,0.00035616,4]
[328232121,1717079453324,-690.89,0.00035616,4]
[328232122,1717079453334,-2164.75,0.00035616,4]
[328232124,1717079453343,-2826.90506,0.00035616,120]
[328232126,1717079453353,-10039.34,0.00035616,3]
[328232128,1717079453362,-8366.12,0.00035616,3]
[328232130,1717079453372,-6971.76,0.00035616,3]
[328232131,1717079453382,-300.25785395,0.00035637,4]
[328232133,1717079453391,-303.48277345,0.00035637,4]
[328232135,1717079453401,-256.09351716,0.00035637,4]
[328232137,1717079453411,-240.92601736,0.00035637,3]
[328232139,1717079453420,-173.00430685,0.00035637,2]
[328232141,1717079453430,-155.29376349,0.00035637,4]
[328232142,1717079453440,-300.63083919,0.00035637,4]
[328232144,1717079453449,-204.62519641,0.00035637,4]
[328232146,1717079453459,-239.0,0.0003567,35]
[328232148,1717079453469,-150.5,0.0003568,35]
[328232150,1717079453478,-150.5,0.0003569,35]
[328232151,1717079453488,-212.66421979,0.0003589,2]
[328232153,1717079453497,-500.0,0.0003589,4]
[328232154,1717079453507,-500.0,0.0003589,4]
[328232155,1717079453517,-1014.89,0.0003589,4]
[328232156,1717079453528,-1286.1,0.0003589,4]
[328232157,1717079453538,-690.89,0.0003589,4]
[328232158,1717079453548,-2164.75,0.0003589,4]
[328232159,1717079453557,-1011.0,0.00036,120]
[328232160,1717079453567,-188.11059945,0.00036164,4]
[328232161,1717079453576,-500.0,0.00036164,4]
[328232162,1717079453585,-1014.89,0.00036164,4]
[328232163,1717079453595,-1286.1,0.00036164,4]
[328232164,1717079453605,-690.89,0.00036164,4]
[328232165,1717079453614,-2164.75,0.00036164,4]
[328232166,1717079453623,-573.413161,0.00036236,2]
[328232167,1717079453632,-257.16550791,0.0003624,2]
[328232168,1717079453642,-443.87666202,0.00036438,4]
[328232169,1717079453650,-1014.93612969,0.00036438,4]
[328232170,1717079453660,-1286.26017896,0.00036438,4]
[328232171,1717079453669,-691.07736178,0.00036438,4]
[328232172,1717079453679,-2164.753786,0.00036438,4]
[328232173,1717079453687,-306.0,0.00036576,2]
[328232174,1717079453698,-153.0,0.00036576,2]
[328232175,1717079453707,-153.0,0.00036576,2]
[328232176,1717079453717,-481.3580805,0.00036595,2]
[328232177,1717079453727,-1708.21899577,0.00037,2]
[328232178,1717079453736,-1440.0,0.00037,120]
[328232179,1717079453745,-1108.37899893,0.0003707,31]
[328232180,1717079453754,-200.0,0.00037136,120]
[328232181,1717079453764,-35479.0,0.00037777,120]
[328232182,1717079453774,-153.0,0.00037947,2]
[328232183,1717079453783,-2207.02249754,0.00038,120]
[328232184,1717079453792,-1000.0,0.00038,120]
[328232185,1717079453801,-200.0,0.00038171,120]
[328232186,1717079453810,-50000.0,0.0003838,8]
[328232187,1717079453819,-2968.16428741,0.000385,60]
[328232188,1717079453829,-150.92453773,0.00038734,2]
[328232189,1717079453839,-168.27707672,0.000388,2]
[328232190,1717079453848,-1000.0,0.00039,39]
[328232191,1717079453861,-1513.0,0.00039,120]
[328232192,1717079453870,-409.3287809,0.00039112,2]
[328232193,1717079453880,-153.0,0.00039112,2]
[328232194,1717079453890,-153.0,0.00039112,2]
[328232195,1717079453900,-153.0,0.00039151,2]
[328232196,1717079453909,-301.84907546,0.00039385,4]
[328232197,1717079453919,-153.0,0.00039386,2]
[328232198,1717079453928,-50000.0,0.0003978,14]
[328232199,1717079453940,-133739.85251731,0.0003978,14]
[328232200,1717079453949,-1415.98403218,0.00039999,5]
[328232201,1717079453959,-500.0,0.00039999,7]
[328232202,1717079453968,-500.0,0.00039999,7]
[328232203,1717079453978,-172.86156566,0.00039999,7]
[328232204,1717079453987,-407.31193979,0.00039999,31]
[328232205,1717079453997,-500.0,0.00039999,31]
[328232206,1717079454007,-461.04570031,0.00039999,31]
[328232207,1717079454016,-500.0,0.00039999,31]
[328232208,1717079454026,-500.0,0.00039999,31]
[328232209,1717079454036,-500.0,0.00039999,31]
[328232210,1717079454046,-638.68866665,0.00039999,31]
[328232211,1717079454056,-500.0,0.00039999,31]
[328232212,1717079454066,-500.0,0.00039999,31]
[328232213,1717079454076,-1528.82321299,0.00039999,31]
[328232214,1717079454086,-500.0,0.00039999,31]
[328232215,1717079454096,-1528.82321299,0.00039999,31]
[328232216,1717079454106,-159.93488168,0.00039999,31]
[328232217,1717079454115,-1528.82321299,0.00039999,31]
[328232218,1717079454125,-1528.82321299,0.00039999,31]
[328232219,1717079454134,-1528.82321299,0.00039999,31]
[328232220,1717079454144,-1528.82321299,0.00039999,31]
[328232221,1717079454153,-1528.82321299,0.00039999,31]
[328232222,1717079454163,-1528.82321299,0.00039999,31]
[328232223,1717079454172,-1528.82321299,0.00039999,31]
[328232224,1717079454182,-1528.82321299,0.00039999,31]
[328232225,1717079454192,-1528.82321299,0.00039999,31]
[328232226,1717079454201,-1528.82321299,0.00039999,31]
[328232227,1717079454211,-1528.82321299,0.00039999,31]
[328232228,1717079454220,-1528.82321299,0.00039999,31]
[328232229,1717079454229,-1528.82321299,0.00039999,31]
[328232230,1717079454239,-1528.82321299,0.00039999,31]
[328232231,1717079454248,-1528.82321299,0.00039999,31]
[328232232,1717079454258,-1528.82321299,0.00039999,31]
[328232233,1717079454268,-1528.82321299,0.00039999,31]
[328232234,1717079454279,-1630.74476054,0.00039999,31]
[328232235,1717079454288,-1630.74476054,0.00039999,31]
[328232236,1717079454297,-1630.74476054,0.00039999,31]
[328232237,1717079454306,-1630.74476054,0.00039999,31]
[328232238,1717079454315,-1630.74476054,0.00039999,31]
[328232239,1717079454325,-1630.74476054,0.00039999,31]
[328232240,1717079454334,-1630.74476054,0.00039999,31]
[328232241,1717079454343,-1630.74476054,0.00039999,31]
[328232242,1717079454353,-163.15234205,0.00039999,31]
[328232243,1717079454363,-500.0,0.00039999,31]
[328232244,1717079454374,-290.50948763,0.00039999,31]
[328232245,1717079454384,-500.0,0.00039999,31]
[328232246,1717079454394,-500.0,0.00039999,31]
[328232247,1717079454404,-363.99889981,0.00039999,31]
[328232248,1717079454413,-871.23419161,0.00039999,31]
[328232249,1717079454423,-871.23419161,0.00039999,31]
[328232250,1717079454433,-871.23419161,0.00039999,31]
[328232251,1717079454442,-871.23419161,0.00039999,31]
[328232252,1717079454452,-871.23419161,0.00039999,31]
[328232253,1717079454461,-871.23419161,0.00039999,31]
[328232254,1717079454471,-871.23419161,0.00039999,31]
[328232255,1717079454480,-871.23419161,0.00039999,31]
[328232256,1717079454490,-871.23419161,0.00039999,31]
[328232257,1717079454500,-871.23419161,0.00039999,31]
[328232258,1717079454510,-871.23419161,0.00039999,31]
[328232259,1717079454520,-871.23419161,0.00039999,31]
[328232260,1717079454531,-871.23419161,0.00039999,31]
[328232261,1717079454541,-871.23419161,0.00039999,31]
[328232262,1717079454550,-282.42983371,0.00039999,31]
[328232263,1717079454559,-453.28163633,0.00039999,31]
[328232264,1717079454568,-526.2427512,0.00039999,31]
[328232265,1717079454578,-173.8931325,0.00039999,31]
[328232266,1717079454587,-210.0,0.00039999,31]
[328232267,1717079454597,-192.88999756,0.00039999,31]
[328232268,1717079454606,-500.0,0.00039999,31]
[328232269,1717079454616,-335.0,0.00039999,31]
[328232270,1717079454626,-1257.71487354,0.00039999,31]
[328232271,1717079454636,-500.0,0.00039999,31]
[328232272,1717079454646,-1257.71487354,0.00039999,31]
[328232273,1717079454656,-348.41069908,0.00039999,31]
[328232274,1717079454666,-500.0,0.00039999,31]
[328232275,1717079454677,-1257.71487354,0.00039999,31]
[328232276,1717079454688,-500.0,0.00039999,31]
[328232277,1717079454698,-188.69012781,0.00039999,31]
[328232278,1717079454708,-1257.71487354,0.00039999,31]
[328232279,1717079454718,-1257.71487354,0.00039999,31]
[328232280,1717079454728,-1257.71487354,0.00039999,31]
[328232281,1717079454738,-500.0,0.00039999,31]
[328232282,1717079454747,-515.08231961,0.00039999,31]
[328232283,1717079454757,-450.0,0.00039999,31]
[328232284,1717079454766,-415.48713031,0.00039999,31]
[328232285,1717079454778,-300.0,0.00039999,31]
[328232286,1717079454787,-389.52320972,0.00039999,31]
[328232287,1717079454795,-500.0,0.00039999,31]
[328232288,1717079454804,-238.20319165,0.00039999,31]
[328232289,1717079454813,-206.60703834,0.00039999,31]
[328232290,1717079454823,-500.0,0.00039999,31]
[328232291,1717079454832,-500.0,0.00039999,31]
[328232292,1717079454841,-500.0,0.00039999,31]
[328232293,1717079454851,-471.45136633,0.00039999,31]
[328232294,1717079454864,-500.0,0.00039999,31]
[328232295,1717079454873,-439.16255737,0.00039999,31]
[328232296,1717079454883,-500.0,0.00039999,31]
[328232297,1717079454892,-500.0,0.00039999,31]
[328232298,1717079454902,-515.27426143,0.00039999,31]
[328232299,1717079454911,-300.0,0.00039999,31]
[328232300,1717079454920,-180.42711054,0.00039999,31]
[328232301,1717079454929,-207.13724968,0.00039999,31]
[328232302,1717079454940,-351.54960046,0.00039999,31]
[328232303,1717079454950,-500.0,0.00039999,31]
[328232304,1717079454959,-500.0,0.00039999,31]
[328232305,1717079454968,-1686.80891502,0.00039999,31]
[328232306,1717079454978,-500.0,0.00039999,31]
[328232307,1717079454987,-500.0,0.00039999,31]
[328232308,1717079454996,-500.0,0.00039999,31]
[328232309,1717079455006,-1686.80891502,0.00039999,31]
[328232310,1717079455016,-1686.80891502,0.00039999,31]
[328232311,1717079455025,-1686.80891502,0.00039999,31]
[328232312,1717079455034,-500.0,0.00039999,31]
[328232313,1717079455043,-452.87488933,0.00039999,31]
[328232314,1717079455052,-1686.80891502,0.00039999,31]
[328232315,1717079455061,-1686.80891502,0.00039999,31]
[328232316,1717079455071,-1686.80891502,0.00039999,31]
[328232317,1717079455080,-1686.80891502,0.00039999,31]
[328232318,1717079455089,-1686.80891502,0.00039999,31]
[328232319,1717079455099,-1686.80891502,0.00039999,31]
[328232320,1717079455108,-1681.26020147,0.00039999,31]
[328232321,1717079455118,-1681.26020147,0.00039999,31]
[328232322,1717079455127,-1681.26020147,0.00039999,31]
[328232323,1717079455136,-293.53845772,0.00039999,31]
[328232324,1717079455145,-300.0,0.00039999,31]
[328232325,1717079455154,-300.0,0.00039999,31]
[328232326,1717079455164,-300.0,0.00039999,31]
[328232327,1717079455173,-188.21790909,0.00039999,31]
[328232328,1717079455182,-450.0,0.00039999,31]
[328232329,1717079455191,-216.63967886,0.00039999,31]
[328232330,1717079455200,-500.0,0.00039999,31]
[328232331,1717079455210,-525.22951407,0.00039999,31]
[328232332,1717079455219,-600.0,0.00039999,31]
[328232333,1717079455228,-576.05752525,0.00039999,31]
[328232334,1717079455238,-156.26828649,0.00039999,31]
[328232335,1717079455248,-485.30912311,0.00039999,31]
[328232336,1717079455258,-5000.0,0.0004,21]
[328232337,1717079455267,-201.43389616,0.0004,4]
[328232338,1717079455277,-4821.35743539,0.0004,2]
[328232339,1717079455286,-3072.28374054,0.0004,15]
[328232340,1717079455295,-1011531.76521211,0.0004,15]
[328232341,1717079455305,-63967.73086744,0.0004,2]
[328232342,1717079455314,-300.0,0.0004,7]
[328232343,1717079455323,-600.54812337,0.0004,2]
[328232344,1717079455333,-522.99,0.0004,2]
[328232345,1717079455342,-16128.83344493,0.0004,15]
[328232346,1717079455352,-321.35632215,0.0004,120]
[328232347,1717079455361,-200.1721187,0.0004,120]
[328232348,1717079455370,-166.20745582,0.0004,120]
[328232349,1717079455380,-1000.0,0.0004,120]
[328232350,1717079455389,-150.61186,0.0004,30]
[328232351,1717079455399,-19726.86840276,0.0004,15]
[328232352,1717079455408,-963.89038431,0.0004,10]
[328232353,1717079455417,-2003.99698,0.0004,60]
[328232354,1717079455426,-627.50856105,0.0004,30]
[328232355,1717079455435,-879.77119689,0.0004,120]
[328232356,1717079455444,-228.98148886,0.0004,4]
[328232357,1717079455544,-603.69815092,0.00040047,7]
[328232358,1717079455555,-29177.65182761,0.0004007,2]
[328232359,1717079455564,-153.0,0.00040192,2]
[328232360,1717079455574,-200.0,0.00040222,120]
[328232361,1717079455583,-156.64386579,0.00040914,120]
[328232362,1717079455592,-2694.56327453,0.00041093,120]
[328232363,1717079455601,-500.0,0.00041095,4]
[328232364,1717079455611,-500.0,0.00041095,4]
[328232365,1717079455621,-500.0,0.00041095,4]
[328232366,1717079455630,-500.0,0.00041095,4]
[328232367,1717079455639,-500.0,0.00041095,4]
[328232368,1717079455649,-500.0,0.00041095,4]